fUST/lending_fUST_20260301
["ID","MTS","AMOUNT","RATE_DAILY","PERIOD"]
[406951544,1772341842437,-500.0,0.00013698,2]
[406951545,1772341842447,-500.0,0.00013698,2]
[406951546,1772341842457,-500.0,0.00013698,2]
[406951547,1772341842468,-500.0,0.00013698,2]
[406951548,1772341842479,-317.31557001,0.00013698,2]
[406951549,1772341842490,-500.0,0.00013698,2]
[406951550,1772341842500,-500.0,0.00013698,2]
[406951551,1772341842510,-500.0,0.00013698,2]
[406951552,1772341842519,-500.0,0.00013698,2]
[406951553,1772341842528,-500.0,0.00013698,2]
[406951554,1772341842538,-465.09525808,0.00013698,2]
[406951555,1772341842550,-166.646,0.00013699,2]
[406951556,1772341842559,-514.786012,0.00013699,2]
[406951557,1772341842570,-46948.1175488,0.00013699,2]
[406951558,1772341842581,-653.945823,0.00013699,2]
[406951559,1772341842591,-552.49832972,0.00013699,2]
[406951560,1772341842602,-500.0,0.00013699,2]
[406951561,1772341842613,-500.0,0.00013699,2]
[406951562,1772341842622,-150.0,0.00013699,2]
[406951563,1772341842631,-500.0,0.00013699,2]
[406951564,1772341842640,-500.0,0.00013699,2]
[406951565,1772341842649,-224.81694134,0.00013699,2]
[406951566,1772341842659,-250.61968163,0.00013699,2]
[406951567,1772341842668,-502.67908887,0.00013699,2]
[406951568,1772341842677,-500.0,0.00013699,2]
[406951569,1772341842687,-501.14945683,0.00013699,2]
[406951570,1772341842697,-500.0,0.00013699,2]
[406951571,1772341842706,-172.84855229,0.00013699,2]
[406951572,1772341842716,-500.0,0.00013699,2]
[406951573,1772341842725,-500.0,0.00013699,2]
[406951574,1772341842736,-500.0,0.00013699,2]
[406951575,1772341842745,-500.33783595,0.00013699,2]
[406951576,1772341842755,-500.0,0.00013699,2]
[406951577,1772341842764,-501.15966411,0.00013699,2]
[406951578,1772341842774,-500.0,0.00013699,2]
[406951579,1772341842783,-500.0,0.00013699,2]
[406951580,1772341842793,-501.32739843,0.00013699,2]
[406951581,1772341842802,-229.33573231,0.00013699,2]
[406951582,1772341842811,-351.76073663,0.00013699,2]
[406951583,1772341842821,-500.0,0.00013699,2]
[406951584,1772341842830,-500.0,0.00013699,2]
[406951585,1772341842839,-500.0,0.00013699,2]
[406951586,1772341842849,-500.0,0.00013699,2]
[406951587,1772341842859,-159.60537807,0.00013699,2]
[406951588,1772341842867,-167.42233795,0.00013699,2]
[406951589,1772341842877,-500.0,0.00013699,2]
[406951590,1772341842886,-309.96585574,0.00013699,2]
[406951591,1772341842896,-5906.75953115,0.0001374,4]
[406951592,1772341842905,-729.0,0.0001379,2]
[406951593,1772341842915,-400.97700586,0.00013821,2]
[406951594,1772341842925,-505.46660313,0.00013821,2]
[406951595,1772341842934,-1000.0,0.00013821,2]
[406951597,1772341842943,-1000.0,0.00013821,2]
[406951599,1772341842952,-1000.0,0.00013821,2]
[406951601,1772341842962,-1008.495681,0.00013821,2]
[406951603,1772341842972,-500.0,0.00013821,2]
[406951605,1772341842981,-1000.0,0.00013821,2]
[406951606,1772341842992,-4829.3973406,0.00013828,2]
[406951607,1772341843002,-250.0,0.00013834,2]
[406951608,1772341843012,-250.0,0.00013834,2]
[406951610,1772341843021,-250.0,0.00013834,2]
[406951611,1772341843031,-250.0,0.00013834,2]
[406951613,1772341843042,-250.0,0.00013834,2]
[406951615,1772341843051,-250.0,0.00013834,2]
[406951617,1772341843060,-250.0,0.00013834,2]
[406951618,1772341843070,-250.0,0.00013834,2]
[406951619,1772341843079,-250.0,0.00013834,2]
[406951620,1772341843089,-250.0,0.00013834,2]
[406951621,1772341843099,-250.0,0.00013834,2]
[406951623,1772341843108,-210.24636477,0.00013834,2]
[406951625,1772341843118,-1957.856,0.00013834,2]
[406951627,1772341843127,-500.0,0.00013834,2]
[406951629,1772341843136,-250.0,0.00013834,2]
[406951631,1772341843145,-500.0,0.00013834,2]
[406951633,1772341843155,-267.78814148,0.00013834,2]
[406951635,1772341843164,-187.78006525,0.00013834,2]
[406951637,1772341843174,-500.0,0.00013834,2]
[406951638,1772341843183,-194.72792766,0.00013834,2]
[406951639,1772341843192,-621.78829552,0.00013834,2]
[406951640,1772341843202,-201.93286099,0.00013834,2]
[406951641,1772341843211,-500.0,0.00013834,2]
[406951642,1772341843220,-156.587,0.00013834,2]
[406951643,1772341843229,-209.40437684,0.00013834,2]
[406951644,1772341843239,-217.15233878,0.00013834,2]
[406951645,1772341843248,-500.0,0.00013834,2]
[406951646,1772341843258,-225.18697532,0.00013834,2]
[406951647,1772341843268,-233.51889341,0.00013834,2]
[406951648,1772341843278,-242.15909246,0.00013834,2]
[406951649,1772341843287,-500.0,0.00013834,2]
[406951650,1772341843298,-251.11897888,0.00013834,2]
[406951651,1772341843307,-545.2765704,0.00013834,2]
[406951652,1772341843317,-273.88742931,0.00013834,2]
[406951653,1772341843327,-500.0,0.00013834,2]
[406951654,1772341843336,-260.4103811,0.00013834,2]
[406951655,1772341843346,-500.0,0.00013834,2]
[406951656,1772341843355,-250.0,0.00013834,2]
[406951657,1772341843365,-270.0455652,0.00013834,2]
[406951658,1772341843374,-500.0,0.00013834,2]
[406951659,1772341843383,-250.0,0.00013834,2]
[406951660,1772341843392,-280.03725112,0.00013834,2]
[406951661,1772341843402,-524.21464383,0.00013834,2]
[406951662,1772341843414,-250.0,0.00013834,2]
[406951663,1772341843424,-290.39862941,0.00013834,2]
[406951664,1772341843435,-301.1433787,0.00013834,2]
[406951665,1772341843446,-151.0,0.00013834,2]
[406951666,1772341843456,-151.0,0.00013834,2]
[406951667,1772341843467,-151.0,0.00013834,2]
[406951668,1772341843480,-151.0,0.00013834,2]
[406951669,1772341843495,-151.0,0.00013834,2]
[406951670,1772341843505,-151.0,0.00013834,2]
[406951671,1772341843515,-500.0,0.00013834,2]
[406951672,1772341843524,-151.0,0.00013834,2]
[406951673,1772341843533,-500.0,0.00013834,2]
[406951674,1772341843544,-151.0,0.00013834,2]
[406951675,1772341843553,-500.0,0.00013834,2]
[406951676,1772341843563,-151.0,0.00013834,2]
[406951677,1772341843572,-156.3596429,0.00013834,2]
[406951678,1772341843582,-169.18929636,0.00013834,2]
[406951679,1772341843591,-500.0,0.00013834,2]
[406951680,1772341843600,-500.0,0.00013834,2]
[406951681,1772341843610,-487.0,0.00013834,2]
[406951682,1772341843619,-487.0,0.00013834,2]
[406951683,1772341843628,-487.0,0.00013834,2]
[406951684,1772341843637,-487.0,0.00013834,2]
[406951685,1772341843647,-487.0,0.00013834,2]
[406951686,1772341843656,-487.0,0.00013834,2]
[406951687,1772341843665,-487.0,0.00013834,2]
[406951688,1772341843674,-487.0,0.00013834,2]
[406951689,1772341843683,-487.0,0.00013834,2]
[406951690,1772341843692,-487.0,0.00013834,2]
[406951691,1772341843701,-487.0,0.00013834,2]
[406951692,1772341843711,-487.0,0.00013834,2]
[406951693,1772341843720,-487.0,0.00013834,2]
[406951694,1772341843729,-487.0,0.00013834,2]
[406951695,1772341843745,-487.0,0.00013834,2]
[406951696,1772341843754,-487.0,0.00013834,2]
[406951697,1772341843763,-487.0,0.00013834,2]
[406951698,1772341843773,-487.0,0.00013834,2]
[406951699,1772341843782,-921.94,0.00013834,2]
[406951700,1772341843791,-338.0,0.00013836,2]
[406951701,1772341843801,-200.73611236,0.00013836,2]
[406951702,1772341843810,-483.19941762,0.00013836,2]
[406951703,1772341843820,-228.9907944,0.00013836,2]
[406951704,1772341843829,-963.1947948,0.00013867,2]
[406951705,1772341843839,-500.0,0.00013918,2]
[406951706,1772341843848,-1072.67152008,0.00013976,2]
[406951707,1772341843858,-180.84216016,0.00014013,2]
[406951708,1772341843867,-637.0,0.00014022,2]
[406951709,1772341843877,-2182.0,0.00014022,2]
[406951710,1772341843886,-1388.0,0.00014022,2]
[406951711,1772341843896,-204.0,0.00014044,2]
[406951712,1772341843905,-6301.47649732,0.00014072,2]
[406951713,1772341843915,-600.0,0.00014221,2]
[406951714,1772341843924,-823.0,0.0001423,2]
[406951715,1772341843933,-159.0,0.0001423,2]
[406951716,1772341843943,-500.0,0.00014246,2]
[406951717,1772341843952,-1000.0,0.00014247,2]
[406951718,1772341843961,-501.52169194,0.00014247,2]
[406951719,1772341843971,-250.0,0.00014247,2]
[406951720,1772341843980,-501.29179317,0.00014247,2]
[406951721,1772341843991,-1000.0,0.00014247,2]
[406951722,1772341844000,-503.89458252,0.00014247,2]
[406951723,1772341844010,-1000.0,0.00014247,2]
[406951724,1772341844020,-1001.3254465,0.00014247,2]
[406951725,1772341844029,-501.3951549,0.00014247,2]
[406951726,1772341844039,-505.23030918,0.00014247,2]
[406951727,1772341844049,-1000.0,0.00014247,2]
[406951728,1772341844058,-1000.0,0.00014247,2]
[406951729,1772341844067,-1000.0,0.00014247,2]
[406951730,1772341844076,-1000.0,0.00014247,2]
[406951731,1772341844086,-1000.0,0.00014247,2]
[406951732,1772341844096,-256.09036203,0.00014247,2]
[406951733,1772341844106,-438.00753192,0.00014247,2]
[406951734,1772341844115,-214.9178088,0.00014332,2]
[406951735,1772341844125,-1175.43519485,0.00014368,2]
[406951736,1772341844134,-445.58727504,0.00014368,2]
[406951737,1772341844144,-1500.0,0.00014368,2]
[406951738,1772341844153,-1500.0,0.00014368,2]
[406951739,1772341844163,-644.79446246,0.00014382,2]
[406951740,1772341844172,-162.380719,0.00014382,2]
[406951741,1772341844182,-720.0,0.00014584,2]
[406951742,1772341844192,-900.0,0.00014768,2]
[406951743,1772341844201,-856.81255236,0.00014795,2]
[406951744,1772341844210,-153.6775714,0.00014795,2]
[406951745,1772341844219,-1163.03195385,0.00014795,2]
[406951746,1772341844229,-1340.96815754,0.00014795,2]
[406951747,1772341844241,-1500.0,0.00014795,2]
[406951748,1772341844250,-1500.0,0.00014795,2]
[406951749,1772341844260,-1500.0,0.00014795,2]
[406951750,1772341844270,-1500.0,0.00014795,2]
[406951751,1772341844279,-754.62979513,0.00014795,2]
[406951752,1772341844290,-2000.0,0.00014916,2]
[406951753,1772341844300,-1068.02913864,0.00014916,2]
[406951754,1772341844310,-168.3888056,0.0001493,2]
[406951755,1772341844320,-668.65185757,0.0001493,2]
[406951756,1772341844330,-632.42,0.00014999,2]
[406951757,1772341844339,-2843.0,0.00015,2]
[406951758,1772341844349,-77117.12541212,0.00015,2]
[406951759,1772341844359,-11706.54451785,0.00015,2]
[406951760,1772341844369,-151.8687637,0.00015,2]
[406951761,1772341844378,-151.0,0.000152,2]
[406951762,1772341844388,-312.33,0.000152,2]
[406951763,1772341844398,-334.14727572,0.00015316,2]
[406951764,1772341844407,-1982.78940008,0.00015342,2]
[406951765,1772341844417,-2000.0,0.00015342,2]
[406951766,1772341844427,-899.69968161,0.00015342,2]
[406951767,1772341844437,-1015.9126622,0.00015342,2]
[406951768,1772341844446,-160.46,0.00015373,2]
[406951769,1772341844456,-168.0,0.00015376,2]
[406951770,1772341844467,-180.84216016,0.00015422,2]
[406951771,1772341844480,-1612.54332862,0.00015464,2]
[406951772,1772341844491,-174.61919141,0.00015478,2]
[406951773,1772341844501,-693.3919763,0.00015478,2]
[406951774,1772341844512,-168.0,0.00015528,2]
[406951775,1772341844523,-3366.60053457,0.00015596,2]
[406951776,1772341844534,-4007.77940862,0.000156,2]
[406951777,1772341844545,-5029.65598997,0.0001564,2]
[406951778,1772341844555,-1152.0,0.00015641,2]
[406951779,1772341844565,-168.0,0.00015644,2]
[406951780,1772341844574,-2000.0,0.000157,2]
[406951781,1772341844584,-2000.0,0.000157,2]
[406951782,1772341844594,-843.84242173,0.00015763,2]
[406951783,1772341844603,-289.35958194,0.000158,7]
[406951784,1772341844613,-221.44307909,0.000158,2]
[406951785,1772341844623,-184.536,0.000158,2]
[406951786,1772341844633,-193.31069307,0.000158,2]
[406951787,1772341844642,-227.04,0.000158,2]
[406951788,1772341844652,-491.77053508,0.0001589,2]
[406951789,1772341844662,-6800.0,0.00016,2]
[406951790,1772341844672,-151.0,0.00016,2]
[406951791,1772341844683,-2871.0,0.00016,2]
[406951792,1772341844693,-181.08010149,0.00016026,2]
[406951793,1772341844702,-719.04747942,0.00016026,2]
[406951794,1772341844713,-864.0,0.00016042,2]
[406951795,1772341844723,-231.0,0.00016044,2]
[406951796,1772341844733,-168.0,0.00016135,2]
[406951797,1772341844743,-500.0,0.00016218,2]
[406951798,1772341844753,-100000.0,0.00016342,2]
[406951799,1772341844763,-151.0,0.00016438,2]
[406951800,1772341844774,-151.0,0.00016438,2]
[406951801,1772341844784,-151.0,0.00016438,2]
[406951802,1772341844794,-151.0,0.00016438,2]
[406951803,1772341844804,-151.0,0.00016438,2]
[406951804,1772341844814,-151.0,0.00016438,2]
[406951805,1772341844824,-3000.0,0.00016438,2]
[406951806,1772341844833,-3000.0,0.00016438,2]
[406951807,1772341844842,-3000.0,0.00016438,2]
[406951808,1772341844851,-3000.0,0.00016438,2]
[406951809,1772341844861,-3000.0,0.00016438,2]
[406951810,1772341844870,-3032.166154,0.00016438,2]
[406951811,1772341844879,-561.11675576,0.00016511,7]
[406951812,1772341844889,-187.78006525,0.00016574,2]
[406951813,1772341844898,-745.65223616,0.00016574,2]
[406951814,1772341844909,-151.0,0.000168,2]
[406951815,1772341844919,-180.84216016,0.00016832,2]
[406951816,1772341844928,-160.0,0.00016884,3]
[406951817,1772341844937,-160.0,0.00016884,5]
[406951818,1772341844947,-4054.888748,0.00017,2]
[406951819,1772341844957,-7000.0,0.00017,2]
[406951820,1772341844967,-151.0,0.00017,2]
[406951821,1772341844976,-500.0,0.0001702,7]
[406951822,1772341844986,-500.0,0.0001702,7]
[406951823,1772341844996,-324.75,0.0001702,7]
[406951824,1772341845005,-637.0,0.00017022,2]
[406951825,1772341845014,-1386.0,0.00017022,2]
[406951826,1772341845024,-179.83814567,0.00017088,2]
[406951827,1772341845033,-273.9,0.00017114,2]
[406951828,1772341845043,-194.72792766,0.00017122,2]
[406951829,1772341845053,-773.2413689,0.00017122,2]
[406951830,1772341845062,-1613.0,0.00017193,2]
[406951831,1772341845072,-561.11675576,0.00017426,9]
[406951832,1772341845081,-151.0,0.000176,2]
[406951833,1772341845091,-1000.0,0.00017646,2]
[406951834,1772341845100,-182.0,0.00017656,7]
[406951835,1772341845109,-1574.35431199,0.0001766,2]
[406951836,1772341845119,-201.93286099,0.0001767,2]
[406951837,1772341845128,-560.42251178,0.0001767,2]
[406951838,1772341845138,-151.0,0.000177,2]
[406951839,1772341845148,-150.0,0.00017808,2]
[406951840,1772341845157,-837.72649529,0.00017897,2]
[406951841,1772341845166,-632.42,0.00017899,2]
[406951842,1772341845176,-720.20798072,0.000179,2]
[406951843,1772341845185,-43904.06707068,0.000179,2]
[406951844,1772341845196,-500.0,0.00017999,2]
[406951845,1772341845205,-501.1499781,0.00018,2]
[406951846,1772341845215,-9499.12649456,0.00018,2]
[406951847,1772341845224,-300.26559324,0.00018,2]
[406951848,1772341845234,-1275.279449,0.00018,2]
[406951849,1772341845243,-737.75061693,0.0001802,2]
[406951850,1772341845253,-1199.92671473,0.00018041,26]
[406951851,1772341845262,-1237.77527491,0.00018041,26]
[406951852,1772341845272,-258.0,0.00018044,2]
[406951853,1772341845281,-632.42,0.00018054,2]
[406951854,1772341845292,-2425.57118777,0.00018055,48]
[406951855,1772341845302,-843.84242173,0.00018088,2]
[406951856,1772341845311,-1559.99822225,0.00018217,28]
[406951857,1772341845321,-209.40437684,0.00018218,2]
[406951858,1772341845330,-180.84216016,0.00018241,2]
[406951859,1772341845339,-1199.92671473,0.00018254,28]
[406951860,1772341845349,-1237.77527491,0.00018254,28]
[406951861,1772341845359,-1135.57,0.0001829,2]
[406951862,1772341845369,-535.83426359,0.00018293,28]
[406951863,1772341845378,-561.11675576,0.0001834,10]
[406951864,1772341845388,-2425.57118777,0.00018343,50]
[406951865,1772341845398,-300.58081,0.00018356,2]
[406951866,1772341845407,-151.0,0.000184,2]
[406951867,1772341845416,-500.0,0.00018466,2]
[406951868,1772341845425,-1199.92671473,0.00018467,30]
[406951869,1772341845434,-1237.77527491,0.00018467,30]
[406951870,1772341845443,-151.0,0.000185,2]
[406951871,1772341845452,-1000.0,0.000185,2]
[406951872,1772341845462,-160.0,0.00018542,2]
[406951873,1772341845471,-1135.57,0.0001856,2]
[406951874,1772341845485,-1559.99822225,0.00018577,31]
[406951875,1772341845495,-2425.57118777,0.00018632,52]
[406951876,1772341845504,-535.83426359,0.00018649,31]
[406951877,1772341845515,-632.42,0.00018679,2]
[406951878,1772341845525,-1199.92671473,0.00018679,32]
[406951879,1772341845534,-1237.77527491,0.00018679,32]
[406951880,1772341845543,-194.99977777,0.00018735,32]
[406951881,1772341845554,-578.24458157,0.00018751,32]
[406951882,1772341845563,-312.49699939,0.00018751,32]
[406951883,1772341845572,-219.93383184,0.00018751,32]
[406951884,1772341845582,-154.72190935,0.00018751,32]
[406951885,1772341845591,-526.49072703,0.00018759,2]
[406951886,1772341845600,-217.15233878,0.00018766,2]
[406951887,1772341845750,-1135.57,0.0001883,2]
[406951888,1772341845781,-1199.92671473,0.00018892,35]
[406951889,1772341845792,-1237.77527491,0.00018892,35]
[406951890,1772341845802,-947.0,0.00018899,2]
[406951891,1772341845812,-8851.383789,0.00018913,7]
[406951892,1772341845821,-1274.908628,0.00018913,7]
[406951893,1772341845831,-2425.57118777,0.0001892,54]
[406951894,1772341845840,-1559.99822225,0.00018936,35]
[406951895,1772341845850,-634.0,0.0001899,5]
[406951896,1772341845859,-532.0,0.0001899,5]
[406951897,1772341845869,-277.66843898,0.00018999,2]
[406951898,1772341845879,-733.01793787,0.00019,2]
[406951899,1772341845887,-1000.0,0.00019,2]
[406951900,1772341845897,-535.83426359,0.00019005,35]
[406951901,1772341845906,-1135.57,0.000191,2]
[406951902,1772341845915,-1199.92671473,0.00019105,37]
[406951903,1772341845925,-1237.77527491,0.00019105,37]
[406951904,1772341845935,-681.0342,0.00019168,2]
[406951905,1772341845945,-632.42,0.00019177,2]
[406951906,1772341845955,-632.42,0.00019177,2]
[406951907,1772341845964,-632.42,0.00019177,2]
[406951908,1772341845974,-632.42,0.00019177,2]
[406951909,1772341845986,-632.42,0.00019177,2]
[406951910,1772341845996,-632.42,0.00019177,2]
[406951911,1772341846006,-632.64197194,0.00019177,2]
[406951912,1772341846016,-151.0,0.00019178,2]
[406951913,1772341846025,-151.0,0.00019178,2]
[406951914,1772341846035,-151.0,0.00019178,2]
[406951915,1772341846045,-151.0,0.00019178,2]
[406951916,1772341846055,-151.0,0.00019178,2]
[406951917,1772341846065,-151.0,0.00019178,2]
[406951918,1772341846074,-151.0,0.00019178,2]
[406951919,1772341846083,-151.0,0.00019178,2]
[406951920,1772341846093,-151.0,0.00019178,2]
[406951921,1772341846102,-151.0,0.00019178,2]
[406951922,1772341846111,-151.0,0.00019178,2]
[406951923,1772341846120,-151.0,0.00019178,2]
[406951924,1772341846130,-151.0,0.00019178,2]
[406951925,1772341846140,-151.0,0.00019178,2]
[406951926,1772341846150,-269.421549,0.00019178,2]
[406951927,1772341846159,-3837.202976,0.00019178,2]
[406951928,1772341846169,-3837.202976,0.00019178,2]
[406951929,1772341846179,-3837.202976,0.00019178,2]
[406951930,1772341846188,-3837.202976,0.00019178,2]
[406951931,1772341846199,-3837.202976,0.00019178,2]
[406951932,1772341846208,-3837.202976,0.00019178,2]
[406951933,1772341846218,-3837.202976,0.00019178,2]
[406951935,1772341846227,-3837.202976,0.00019178,2]
[406951936,1772341846239,-3837.202976,0.00019178,2]
[406951937,1772341846248,-3837.202976,0.00019178,2]
[406951938,1772341846258,-3837.202976,0.00019178,2]
[406951939,1772341846267,-3837.202976,0.00019178,2]
[406951940,1772341846276,-3837.202976,0.00019178,2]
[406951942,1772341846286,-3837.202976,0.00019178,2]
[406951943,1772341846296,-3837.202976,0.00019178,2]
[406951944,1772341846306,-3837.202976,0.00019178,2]
[406951945,1772341846315,-3837.202976,0.00019178,2]
[406951946,1772341846325,-3837.202976,0.00019178,2]
[406951947,1772341846335,-3837.202976,0.00019178,2]
[406951948,1772341846346,-3837.202967,0.00019178,2]
[406951949,1772341846355,-178.30143631,0.00019178,2]
[406951950,1772341846364,-151.0,0.000192,2]
[406951951,1772341846374,-2425.57118777,0.00019208,57]
[406951952,1772341846383,-171.41810208,0.00019243,38]
[406951954,1772341846392,-561.11675576,0.00019255,11]
[406951955,1772341846403,-1559.99822225,0.00019296,39]
[406951956,1772341846412,-151.0,0.000193,2]
[406951957,1772341846422,-151.0,0.000193,2]
[406951958,1772341846431,-225.18697532,0.00019314,2]
[406951959,1772341846440,-1199.92671473,0.00019318,39]
[406951960,1772341846449,-1237.77527491,0.00019318,39]
[406951961,1772341846459,-1135.57,0.0001937,2]
[406951962,1772341846472,-1000.0,0.00019411,2]
[406951963,1772341846481,-244.0,0.00019411,2]
[406951964,1772341846491,-578.24458157,0.00019489,40]
[406951965,1772341846500,-312.49699939,0.00019489,40]
[406951966,1772341846511,-2425.57118777,0.00019496,59]
[406951967,1772341846521,-1000.0,0.000195,2]
[406951968,1772341846532,-1199.92671473,0.00019531,41]
[406951969,1772341846543,-1237.77527491,0.00019531,41]
[406951970,1772341846554,-89379.5570167,0.00019602,2]
[406951971,1772341846564,-151.0,0.00019632,30]
[406951972,1772341846575,-1135.57,0.0001964,2]
[406951973,1772341846584,-1559.99822225,0.00019655,42]
[406951974,1772341846593,-14468.3317382,0.000197,2]
[406951975,1772341846603,-535.83426359,0.00019718,42]
[406951976,1772341846612,-278.0,0.00019726,30]
[406951977,1772341846622,-1199.92671473,0.00019744,43]
[406951978,1772341846631,-1237.77527491,0.00019744,43]
[406951979,1772341846640,-681.0,0.00019763,2]
[406951980,1772341846649,-150.0,0.00019763,2]
[406951981,1772341846659,-150.0,0.00019763,2]
[406951982,1772341846670,-150.0,0.00019763,2]
[406951983,1772341846680,-150.0,0.00019763,2]
[406951984,1772341846690,-150.0,0.00019763,2]
[406951985,1772341846700,-150.0,0.00019763,2]
[406951986,1772341846708,-274.0,0.00019763,2]
[406951987,1772341846719,-2425.57118777,0.00019785,61]
[406951988,1772341846729,-513.99573893,0.000198,2]
[406951989,1772341846738,-130604.4748645,0.000198,2]
[406951990,1772341846747,-766.71756535,0.000198,2]
[406951991,1772341846756,-213343.55483712,0.000198,2]
[406951992,1772341846944,-500.0,0.00011142,2]
[406951993,1772341846954,-500.0,0.00013834,2]
[406951994,1772341846964,-500.0,0.00013834,2]
[406951995,1772341846973,-500.0,0.00013834,2]
[406951996,1772341846982,-500.0,0.00013834,2]
[406951997,1772341846992,-3110.73296128,0.000198,2]
[406951998,1772341847278,-500.0,0.00013834,2]
[406951999,1772341847288,-500.0,0.00013834,2]
[406952000,1772341847298,-204.0346894,0.00013971,2]
[406952001,1772342045141,5377.0,0.0001,2]
[406952043,1772343032364,-213.98,0.000123,2]
[406952045,1772343032373,-226.43335325,0.000123,2]
[406952047,1772343032385,-367.56664675,0.000123,2]
[406952049,1772343032394,-150.0,0.00012475,2]
[406952051,1772343032403,-290.75671706,0.000128,2]
[406952053,1772343032415,-709.24328294,0.000128,2]
[406952055,1772343032424,-186.0041123,0.00013699,2]
[406952056,1772343032434,-151.19,0.000137,2]
[406952057,1772343032444,-200.0,0.00013836,2]
[406952058,1772343032454,-395.9653106,0.00013971,2]
[406952059,1772343032464,-177.0,0.00014475,2]
[406952060,1772343032473,-478.808,0.00014769,2]
[406952061,1772343032483,-300.0,0.00015227,2]
[406952062,1772343032492,-300.0,0.00015227,2]
[406952063,1772343032502,-1200.0,0.00015227,2]
[406952065,1772343032519,-542.9419738,0.00015228,2]
[406952067,1772343032528,-5622.1762102,0.00015228,2]
[406952069,1772343032538,-250.82443949,0.00015339,2]
[406952071,1772343032548,-156.587,0.00015359,2]
[406952072,1772343032557,-187.78006525,0.00015359,2]
[406952073,1772343032567,-194.72792766,0.00015359,2]
[406952074,1772343032576,-201.93286099,0.00015359,2]
[406952076,1772343032586,-209.40437684,0.00015359,2]
[406952078,1772343032595,-217.15233878,0.00015359,2]
[406952080,1772343032604,-225.18697532,0.00015359,2]
[406952082,1772343032613,-233.51889341,0.00015359,2]
[406952084,1772343032622,-242.15909246,0.00015359,2]
[406952086,1772343032631,-251.11897888,0.00015359,2]
[406952088,1772343032641,-354.75692801,0.00015359,2]
[406952090,1772343032650,-677.3755222,0.00015368,2]
[406952280,1772343041072,-42.6244778,0.00015368,2]
[406952281,1772343041081,-637.03993578,0.00015539,2]
[406952286,1772343046090,-580.32566672,0.00015539,2]
[406952287,1772343046100,-162.380719,0.00015907,2]
[406952288,1772343046109,-172.6694638,0.00016026,2]
[406952290,1772343046118,-1000.0,0.00016141,2]
[406952291,1772343046128,-786.0,0.000164,2]
[406952292,1772343046137,-157.07088199,0.00016455,2]
[406952293,1772343046146,-204.0,0.00016475,2]
[406952294,1772343046155,-164.97595852,0.000168,2]
[406952295,1772343046164,-864.0,0.00016905,2]
[406952296,1772343046174,-235.78862136,0.00018176,2]
[406952297,1772343046184,-160.99542185,0.00018411,2]
[406952298,1772343046193,-99.54809179,0.00018475,2]
[406952299,1772343046205,-131.45190821,0.00018475,2]
[406952300,1772343046214,-744.97886799,0.00018496,2]
[406952301,1772343046223,-1000.0,0.00018595,2]
[406952302,1772343046233,-221.9867936,0.00018641,2]
[406952303,1772343046242,-161.76114017,0.00018889,2]
[406952304,1772343046253,-581.43000199,0.00018889,2]
[406952305,1772343046263,-500.0,0.00018988,2]
[406952306,1772343046273,-500.0,0.00018988,2]
[406952307,1772343046282,-165.37232356,0.00018988,2]
[406952308,1772343046292,-500.0,0.00018988,2]
[406952309,1772343046301,-500.0,0.00018988,2]
[406952310,1772343046311,-500.0,0.00018989,2]
[406952311,1772343046320,-171.58523616,0.00018989,2]
[406952312,1772343046329,-500.0,0.00018989,2]
[406952313,1772343046339,-327.94564904,0.00018989,2]
[406952315,1772343046867,-172.05435096,0.00018989,2]
[406952316,1772343046878,-500.0,0.00018989,2]
[406952317,1772343046887,-500.0,0.00018989,2]